bitfinex-derivatives/quotes_ETHF0:USTF0_20240901
["timestamp","ask_amount","ask_price","bid_price","bid_amount"]
[1725218463172,0.4059664,2500.3,2500.0,1.1966]
[1725218463360,0.3999,2500.8,2500.4,0.39995]
[1725218463556,0.3999,2500.8,2500.5,0.5874]
[1725218463761,4.40871154,2500.7,2500.5,0.5874]
[1725218464364,4.80862154,2500.7,2500.5,0.5874]
[1725218464567,5.9678,2500.6,2500.1,3.2078]
[1725218464872,0.4,2500.1,2500.0,0.6092]
[1725218465074,0.40002,2500.0,2499.8,0.6224]
[1725218465869,4.43106376,2500.3,2499.9,9.9678]
[1725218466065,0.39991,2500.7,2500.3,0.39996]
[1725218466271,0.4058764,2500.9,2500.5,0.39993]
[1725218466470,0.0059964,2500.9,2500.7,0.3999]
[1725218466663,0.0059964,2500.9,2500.6,8.62564791]
[1725218467166,0.0059964,2500.9,2500.6,9.02555791]
[1725218468171,0.0059964,2500.9,2500.6,8.62564791]
[1725218468366,0.4058664,2500.9,2500.6,8.62564791]
[1725218468670,0.39992,2500.6,2500.4,1.8605]
[1725218469464,4.2895708,2500.8,2500.4,8.7583]
[1725218469672,0.0059964,2500.9,2500.5,0.39993]
[1725218470468,0.0059964,2500.9,2500.5,3.9992]
[1725218470667,0.0059964,2500.9,2500.6,3.9992]
[1725218470874,0.0059964,2500.9,2500.5,3.9992]
[1725218471070,0.0059964,2500.9,2500.6,0.39991]
[1725218471780,0.0059964,2500.9,2500.4,4.4484]
[1725218471966,0.0059964,2500.9,2500.2,4.19]
[1725218471967,0.99973,2500.8,2500.2,4.19]
[1725218472174,0.39996,2500.4,2500.2,4.19]
[1725218472474,0.39996,2500.4,2500.3,8.50435014]
[1725218472876,0.39996,2500.4,2500.2,4.7693]
[1725218473184,0.39997,2500.3,2500.2,4.7693]
[1725218473369,0.99982,2500.6,2500.2,4.7693]
[1725218473370,0.0059964,2500.9,2500.3,8.17608092]
[1725218473574,0.0059964,2500.9,2500.5,3.2078]
[1725218473774,0.0059964,2500.9,2500.6,0.39992]
[1725218473974,0.0059964,2500.9,2500.6,9.17470092]
[1725218474275,0.0059964,2500.9,2500.6,13.17390092]
[1725218474575,0.0059964,2500.9,2500.6,0.5987]
[1725218474770,0.39989,2500.8,2500.6,0.5987]
[1725218474973,0.4058764,2500.9,2500.6,0.5987]
[1725218475171,0.0059964,2500.9,2500.6,0.5987]
[1725218475372,0.0059964,2500.9,2500.6,0.99862]
[1725218475682,0.0059964,2500.9,2500.6,0.5987]
[1725218475870,0.0059964,2500.9,2500.6,0.99862]
[1725218476480,0.0059964,2500.9,2500.7,0.6008]
[1725218476985,0.4058664,2500.9,2500.7,0.6008]
[1725218477366,0.0059964,2500.9,2500.7,0.6008]
[1725218479275,0.4058664,2500.9,2500.7,0.6008]
[1725218479679,0.0059964,2500.9,2500.7,0.6008]
[1725218482473,0.99933,2501.8,2500.8,3.9984]
[1725218482474,3.2078,2501.7,2500.8,3.9984]
[1725218482668,3.2078,2501.7,2501.0,0.39985]
[1725218482669,0.3998,2501.4,2501.0,0.39985]
[1725218482874,0.3998,2501.4,2501.1,0.572]
[1725218484094,0.3998,2501.4,2501.0,0.4058464]
[1725218484095,0.0059964,2501.5,2501.0,0.0059964]
[1725218484276,0.39981,2501.3,2501.0,0.0059964]
[1725218484579,0.39982,2501.2,2501.0,0.0059964]
[1725218484786,0.39982,2501.3,2501.0,0.0059964]
[1725218486184,0.39981,2501.3,2501.0,0.0059964]
[1725218486990,0.39981,2501.3,2501.0,0.4058464]
[1725218487191,0.0059964,2501.5,2501.1,0.39983]
[1725218487483,0.39979,2501.4,2501.1,0.39983]
[1725218487690,0.39979,2501.4,2501.2,0.607]
[1725218488777,0.39981,2501.3,2501.2,0.607]
[1725218489476,0.3998,2501.4,2501.2,0.607]
[1725218489673,0.39981,2501.3,2501.2,0.607]
[1725218491185,0.39981,2501.3,2501.0,0.0059964]
[1725218491480,0.5648,2501.2,2501.0,0.4058464]
[1725218492082,0.96462,2501.2,2501.0,0.0059964]
[1725218492383,0.39984,2501.1,2501.0,0.0059964]
[1725218492775,0.39984,2501.1,2501.0,4.0043964]
[1725218493178,0.96463,2501.2,2501.0,4.0043964]
[1725218493375,0.96463,2501.2,2501.0,0.0059964]
[1725218493787,0.5648,2501.2,2501.0,0.0059964]
[1725218493978,0.39982,2501.3,2501.0,0.0059964]
[1725218494180,0.39983,2501.2,2501.0,0.0059964]
[1725218494382,0.39981,2501.3,2501.0,0.4058464]
[1725218494576,0.9621864,2501.5,2501.1,0.39983]
[1725218494779,0.9621864,2501.5,2501.1,0.98943]
[1725218494979,0.9621864,2501.5,2501.2,0.39982]
[1725218495191,0.9621864,2501.5,2501.3,0.6093]
[1725218495491,0.39979,2501.4,2501.3,0.6093]
[1725218497390,0.39979,2501.4,2501.1,0.98944]
[1725218497594,0.39979,2501.4,2501.1,1.59874]
[1725218499188,0.39979,2501.4,2501.1,1.1989]
[1725218499381,0.9621764,2501.5,2501.1,1.1989]
[1725218499584,0.0059964,2501.5,2501.3,0.3998]
[1725218499780,0.0059964,2501.5,2501.4,0.5632]
[1725218500190,0.0059964,2501.5,2501.4,4.96059]
[1725218500578,0.0059964,2501.5,2501.4,7.72059]
[1725218500785,0.0059964,2501.5,2501.4,19.43294506]
[1725218501393,0.0059964,2501.5,2501.4,25.43294506]
[1725218501596,3.2078,2502.1,2501.7,0.39973]
[1725218501597,3.60748,2502.1,2501.7,0.39973]
[1725218501895,3.60748,2502.1,2501.8,1.1863]
[1725218502281,3.60748,2502.1,2501.9,0.5864]
[1725218502680,0.3997,2502.0,2501.9,0.5864]
[1725218503788,3.60749,2502.1,2501.9,0.5864]
[1725218504101,0.39977,2501.6,2501.4,3.2078]
[1725218504395,0.39978,2501.5,2501.4,3.2078]
[1725218504592,1.01438,2501.5,2501.4,3.2078]
[1725218504897,0.6146,2501.5,2501.4,3.2078]
[1725218506798,0.6146,2501.5,2501.2,0.5847]
[1725218507294,0.39979,2501.4,2501.2,0.5847]
[1725218507494,0.6008,2501.4,2501.2,0.5847]
[1725218508596,0.6008,2501.4,2501.1,0.5973]
[1725218508797,1.0006,2501.4,2501.2,0.5627]
[1725218508986,0.39981,2501.3,2501.2,0.5627]
[1725218509597,1.0006,2501.4,2501.2,0.5627]
[1725218509897,0.6008,2501.4,2501.2,0.5627]
[1725218510092,0.39974,2501.8,2501.3,3.1598]
[1725218510395,0.39974,2501.7,2501.5,2.76]
[1725218510591,3.7998,2501.9,2501.2,0.5627]
[1725218510791,0.39979,2501.4,2501.2,0.5627]
[1725218510997,0.39982,2501.2,2501.1,3.3573]
[1725218511802,0.39984,2501.1,2501.0,0.0059964]
[1725218511990,4.39824,2501.1,2501.0,0.0059964]
[1725218512191,8.80865567,2501.1,2501.0,0.0059964]
[1725218512500,8.80865567,2501.1,2500.4,3.15994]
[1725218512501,0.39994,2500.5,2500.4,4.19]
[1725218512688,0.99972,2500.9,2500.2,6.5252]
[1725218512689,0.39996,2500.4,2500.2,6.5252]
[1725218512885,0.39993,2500.6,2500.2,6.92518]
[1725218513083,0.39997,2500.3,2500.2,5.9678]
[1725218513289,0.5669,2500.5,2500.2,5.9678]
[1725218513489,0.39995,2500.4,2500.2,5.9678]
[1725218513893,0.5669,2500.5,2500.2,7.207]
[1725218514098,0.0059964,2500.6,2500.2,3.2078]
[1725218514292,0.0059964,2500.6,2500.4,0.39995]
[1725218514489,0.0059964,2500.6,2500.3,12.90964376]
[1725218515788,0.0059964,2500.6,2500.4,0.39995]
[1725218516189,0.0059964,2500.6,2500.3,12.50968376]
[1725218516497,0.0059964,2500.6,2500.5,8.43928815]
[1725218516693,0.0059964,2500.6,2500.5,0.39994]
[1725218516895,0.0059964,2500.6,2500.5,4.39914]
[1725218517200,0.0059964,2500.6,2500.5,12.83842815]
[1725218517588,0.0059964,2500.6,2500.5,12.43848815]
[1725218518391,0.0059964,2500.6,2500.5,12.83842815]
[1725218519396,0.0059964,2500.6,2500.5,12.43848815]
[1725218520902,0.0059964,2500.6,2500.5,12.83842815]
[1725218521108,1.00095,2501.1,2500.7,0.3999]
[1725218521313,1.00095,2501.1,2500.8,1.206]
[1725218521609,1.00095,2501.1,2500.8,1.7932]
[1725218521811,4.4246,2501.5,2500.8,1.7932]
[1725218522107,0.39982,2501.3,2500.9,8.27704817]
[1725218522809,0.39982,2501.3,2500.2,0.5581]
[1725218522810,0.99977,2500.7,2500.2,0.5581]
[1725218523008,0.39996,2500.4,2500.2,0.5581]
[1725218523202,0.39997,2500.3,2500.2,0.5581]
[1725218523411,0.39998,2500.2,2500.1,0.0059964]
[1725218523903,4.39998,2500.2,2500.1,0.0059964]
[1725218524114,5.39994,2500.2,2500.1,0.0059964]
[1725218525402,4.39998,2500.2,2500.1,0.0059964]
[1725218527920,7.60778,2500.2,2500.1,0.0059964]
[1725218528211,8.22128,2500.2,2500.1,0.0059964]
[1725218528910,0.40008,2499.7,2499.5,1.1453]
[1725218529500,0.4001,2499.5,2499.4,3.2078]
[1725218529812,0.40014,2499.3,2499.1,4.19]
[1725218530210,0.40016,2499.1,2499.0,0.0059964]
[1725218530511,1.40057,2499.1,2499.0,0.0059964]
[1725218530714,1.00045,2499.0,2498.3,3.7874]
[1725218531014,4.30458678,2498.9,2498.1,4.8788]
[1725218531202,0.40021,2498.8,2498.3,0.40028]
[1725218531509,4.30458678,2498.9,2498.1,4.8788]
[1725218531510,0.40025,2498.6,2498.1,5.27911]
[1725218531714,0.40025,2498.6,2498.3,0.0059964]
[1725218531911,4.30458678,2498.9,2498.3,0.0059964]
[1725218532103,0.40022,2498.7,2498.3,0.0059964]
[1725218532418,0.40027,2498.4,2498.3,0.0059964]
[1725218532913,0.40027,2498.4,2498.3,4.0083964]
[1725218533415,3.2078,2498.7,2498.3,4.0083964]
[1725218533708,0.40021,2498.8,2498.3,0.0059964]
[1725218533914,0.40023,2498.7,2498.3,0.0059964]
[1725218534414,4.63825236,2498.9,2498.3,0.0059964]
[1725218534415,0.40021,2498.8,2498.3,0.4062864]
[1725218534604,0.40021,2498.8,2498.3,0.0059964]
[1725218534804,0.40023,2498.7,2498.3,0.0059964]
[1725218535113,0.40027,2498.5,2498.3,0.0059964]
[1725218535313,0.40025,2498.6,2498.3,0.0059964]
[1725218535508,4.63825236,2498.9,2498.3,0.0059964]
[1725218535711,4.63825236,2498.9,2498.4,0.40027]
[1725218536016,0.40022,2498.8,2498.3,0.4062764]
[1725218536417,0.40022,2498.7,2498.3,0.0059964]
[1725218536805,4.3933,2499.0,2498.3,0.4062864]
[1725218536806,0.40021,2498.8,2498.3,0.4062864]
[1725218537204,4.3933,2499.0,2498.3,0.4062864]
[1725218537205,0.40027,2498.4,2498.3,0.0059964]
[1725218537409,4.40267,2498.4,2498.3,0.0059964]
[1725218537719,1.00079,2498.2,2497.5,0.5783]
[1725218537906,0.4004,2497.6,2497.5,0.5783]
[1725218538304,3.2078,2497.6,2497.2,0.6106]
[1725218538518,0.40043,2497.4,2497.2,0.6106]
[1725218538719,0.40045,2497.3,2497.2,0.6106]
[1725218538905,0.0059964,2497.5,2497.1,0.0059964]
[1725218539117,0.40046,2497.2,2497.1,0.0059964]
[1725218539409,0.0059964,2497.5,2497.1,0.0059964]
[1725218539605,0.40043,2497.4,2497.1,0.0059964]
[1725218540516,0.0059964,2497.5,2497.1,0.0059964]
[1725218541010,0.0059964,2497.5,2497.1,0.4064664]
[1725218541213,0.0059964,2497.5,2497.1,0.0059964]
[1725218541214,0.4064264,2497.5,2497.1,0.0059964]
[1725218541409,0.40044,2497.4,2497.1,0.0059964]
[1725218541806,0.40043,2497.4,2497.1,0.0059964]
[1725218542013,0.0059964,2497.5,2497.1,0.0059964]
[1725218542514,0.4064164,2497.5,2497.1,0.0059964]
[1725218542713,0.0059964,2497.5,2497.1,0.4064764]
[1725218543821,0.0059964,2497.5,2497.1,0.0059964]
[1725218544321,0.40046,2497.3,2497.1,0.0059964]
[1725218544618,4.71564209,2497.4,2497.1,0.0059964]
[1725218545512,4.31520209,2497.4,2497.1,0.0059964]
[1725218545815,4.31520209,2497.4,2497.2,8.50854873]
[1725218545816,0.40043,2497.4,2497.2,8.50854873]
[1725218546022,0.40043,2497.4,2497.1,0.0059964]
[1725218546314,0.40045,2497.3,2497.1,0.0059964]
[1725218546509,0.0059964,2497.5,2497.1,0.0059964]
[1725218546909,0.40046,2497.3,2497.1,0.0059964]
[1725218547216,0.40046,2497.2,2497.1,0.0059964]
[1725218547908,4.40526,2497.2,2497.1,0.0059964]
[1725218548416,5.54356,2497.2,2497.1,0.0059964]
[1725218549617,3.2078,2497.3,2497.1,0.0059964]
[1725218549618,3.60826,2497.3,2497.1,0.0059964]
[1725218549806,3.2078,2497.3,2497.1,0.0059964]
[1725218550618,0.0059964,2497.5,2497.2,12.438045]
[1725218550806,0.0059964,2497.5,2497.2,8.433245]
[1725218551208,0.0059964,2497.5,2497.2,8.833705]
[1725218551415,0.0059964,2497.5,2497.2,8.433245]
[1725218551619,0.0059964,2497.5,2497.3,4.97084]
[1725218551812,0.0059964,2497.5,2497.4,0.5786]
[1725218552014,0.0059964,2497.5,2497.4,4.5826]
[1725218553611,0.0059964,2497.5,2497.4,4.98303]
[1725218553920,0.0059964,2497.5,2497.4,5.57643]
[1725218554122,0.0059964,2497.5,2497.4,5.176]
[1725218554415,0.0059964,2497.5,2497.4,5.57643]
[1725218555413,0.40046,2497.3,2497.1,0.0059964]
[1725218555614,0.40046,2497.2,2497.1,0.0059964]
[1725218555824,0.40046,2497.3,2497.1,0.0059964]
[1725218556428,0.40045,2497.3,2497.1,0.0059964]
[1725218558710,0.40046,2497.2,2497.1,0.0059964]
[1725218559813,4.40526,2497.2,2497.1,0.0059964]
[1725218560319,0.40055,2496.7,2496.5,3.2078]
[1725218560919,0.40056,2496.6,2496.5,3.2078]
[1725218561112,0.40056,2496.6,2496.3,4.59061]
[1725218561522,0.40055,2496.7,2496.3,4.59061]
[1725218563220,0.567,2496.8,2496.5,0.40057]
[1725218563425,0.96753,2496.8,2496.4,0.40058]
[1725218563628,0.567,2496.8,2496.3,4.19]
[1725218564123,0.567,2496.8,2496.4,0.40059]
[1725218564317,0.96753,2496.8,2496.4,0.40059]
[1725218564620,0.40055,2496.7,2496.3,4.5906]
[1725218565426,0.40055,2496.7,2496.3,0.4006]
[1725218565615,0.96754,2496.8,2496.4,0.40059]
[1725218565815,0.96754,2496.8,2496.6,0.40056]
[1725218565816,0.567,2496.8,2496.6,0.40056]
[1725218566122,0.4005,2497.0,2496.6,0.40056]
[1725218566516,0.4005,2497.0,2496.7,1.1575]
[1725218567029,3.2078,2497.1,2496.7,5.1623]
[1725218567231,0.0059964,2497.5,2496.8,15.61347101]
[1725218567524,0.40046,2497.2,2496.8,12.00919101]
[1725218567927,0.40046,2497.3,2496.9,0.40051]
[1725218568618,0.40045,2497.3,2496.9,0.40051]
[1725218569119,0.40046,2497.2,2496.9,0.40051]
[1725218569314,1.5760564,2497.5,2496.8,11.60867101]
[1725218569516,0.40048,2497.1,2496.8,11.60867101]
[1725218569831,0.40047,2497.2,2496.8,12.00920101]
[1725218570025,0.40048,2497.1,2496.8,11.60867101]
[1725218571622,0.40047,2497.2,2496.8,12.00920101]
[1725218572029,0.40047,2497.2,2496.8,8.80140101]
[1725218573133,0.40048,2497.1,2496.8,8.80140101]
[1725218573721,0.40048,2497.1,2496.8,8.40087101]
[1725218574736,0.40048,2497.1,2496.8,8.80140101]
[1725218575030,0.40047,2497.2,2496.8,8.80140101]
[1725218575222,0.40047,2497.2,2496.9,0.5617]
[1725218575529,0.40048,2497.1,2496.9,0.5617]
[1725218575837,3.77113,2497.3,2496.7,4.3653]
[1725218576020,0.40053,2496.8,2496.7,1.1575]
[1725218578727,4.0056,2496.8,2496.3,7.3978]
[1725218578930,8.13329,2496.9,2496.3,7.3978]
[1725218579136,0.40059,2496.5,2496.3,7.3978]
[1725218579323,0.40059,2496.4,2496.3,7.3978]
[1725218579833,0.40059,2496.4,2496.2,0.00600853]
[1725218579834,0.40061,2496.3,2496.2,0.00600853]
[1725218580030,0.96471,2496.3,2496.2,0.00600853]
[1725218580240,5.34484,2496.3,2496.2,0.00600853]
[1725218580442,9.35124,2496.3,2496.2,0.00600853]
[1725218580626,9.35124,2496.3,2496.2,8.53e-06]
[1725218580627,19.84352251,2496.3,2496.2,8.53e-06]
[1725218580930,20.84505251,2496.3,2496.2,8.53e-06]
[1725218581124,21.04772977,2496.3,2496.2,8.53e-06]
[1725218581325,21.04772977,2496.3,2495.3,4.19]
[1725218581326,1.00167,2496.0,2495.1,1.7006]
[1725218581529,2.77,2495.6,2495.2,0.40078]
[1725218581733,3.17072,2495.6,2495.2,8.61854958]
[1725218582031,0.40072,2495.6,2495.2,8.61854958]
[1725218582226,0.40672853,2495.6,2495.2,8.61854958]
[1725218582433,0.00600853,2495.6,2495.2,9.01932958]
[1725218582633,0.40672853,2495.6,2495.2,9.01932958]
[1725218583031,0.40672853,2495.6,2495.2,8.61854958]
[1725218583232,0.40672853,2495.6,2495.2,9.01932958]
[1725218583638,0.40672853,2495.6,2495.2,8.61854958]
[1725218583829,0.00600853,2495.6,2495.2,9.01932958]
[1725218584039,0.00600853,2495.6,2495.2,8.61854958]
[1725218584238,0.00600853,2495.6,2495.5,3.60854]
[1725218584536,1.1727,2496.3,2495.7,0.4007]
[1725218584537,0.40064,2496.1,2495.7,0.4007]
[1725218584736,0.40063,2496.2,2495.8,0.5874]
[1725218585038,0.40063,2496.2,2495.8,1.1911]
[1725218585229,0.40063,2496.2,2495.8,1.7692]
[1725218585541,0.40663853,2496.2,2495.8,1.77520853]
[1725218586438,0.00600853,2496.2,2495.8,2.17589853]
[1725218586634,0.00600853,2496.2,2495.9,0.40067]
[1725218586936,0.00600853,2496.2,2496.1,0.40064]
[1725218587339,0.00600853,2496.2,2496.1,4.40704]
[1725218587535,0.00600853,2496.2,2496.1,4.0064]
[1725218592139,0.00600853,2496.2,2496.0,0.40065]
[1725218592335,0.00600853,2496.2,2496.0,4.0064]
[1725218593150,0.00600853,2496.2,2496.1,0.40064]
[1725218593446,0.00600853,2496.2,2496.0,4.40704]
[1725218593935,0.00600853,2496.2,2496.1,0.40064]
[1725218594332,0.00600853,2496.2,2496.1,4.40704]
[1725218594736,0.00600853,2496.2,2496.1,13.61484]
[1725218594944,3.2078,2497.2,2496.1,26.91544755]
[1725218595245,0.6173,2497.5,2496.7,3.2078]
[1725218595452,0.6173,2497.5,2497.0,0.40049]
[1725218595453,1.01772,2497.5,2497.0,0.40049]
[1725218595749,1.01773,2497.5,2496.9,0.4005]
[1725218595945,0.00600853,2497.4,2496.8,10.57287838]
[1725218596140,0.40046,2497.3,2497.0,8.36985838]
[1725218596341,0.40048,2497.1,2497.0,8.36985838]
[1725218596540,0.4005,2497.0,2496.9,8.36985838]
[1725218596749,0.9673,2497.0,2496.5,1.7966]
[1725218597050,0.9673,2497.0,2496.6,8.60962864]
[1725218597636,0.5668,2497.0,2496.6,8.60962864]
[1725218598043,0.40053,2496.8,2496.5,1.1873]
[1725218598238,0.40053,2496.8,2496.5,0.6]
[1725218599447,0.40055,2496.7,2496.5,0.6]
[1725218599646,4.3395,2497.0,2496.5,0.6]
[1725218599938,0.40051,2496.9,2496.5,0.6]
[1725218600339,0.40055,2496.7,2496.5,0.6]
[1725218601645,0.40054,2496.8,2496.5,0.6]
[1725218602650,0.40052,2496.9,2496.5,0.6]
[1725218602962,3.2078,2497.3,2496.9,0.4005]
[1725218603153,3.2078,2497.3,2497.0,0.5711]
[1725218603348,3.2078,2497.3,2497.0,1.1917]
[1725218603854,3.2078,2497.3,2497.0,1.59219]
[1725218604059,3.2078,2497.3,2497.1,0.569]
[1725218604952,3.2078,2497.3,2497.1,0.96948]
[1725218605252,3.2078,2497.3,2497.1,0.569]
[1725218605753,3.2078,2497.3,2496.2,0.99981]
[1725218605754,0.40055,2496.7,2496.2,0.99981]
[1725218605951,0.40056,2496.6,2496.2,1.60071]
[1725218606149,2.77,2496.8,2496.3,8.61010724]
[1725218606346,3.8199,2496.7,2496.3,8.61010724]
[1725218606557,0.40059,2496.5,2496.3,8.61010724]
[1725218606752,0.40059,2496.4,2496.3,8.61010724]
[1725218607454,2.77,2496.6,2495.9,0.40066]
[1725218607756,0.40062,2496.3,2495.9,8.68099218]
[1725218607950,0.607,2496.5,2496.0,0.40066]
[1725218607951,0.4006,2496.4,2496.0,0.40066]
[1725218608446,0.607,2496.5,2495.9,8.28033218]
[1725218608849,0.40059,2496.4,2495.9,8.68100218]
[1725218609258,0.40059,2496.4,2496.0,0.40065]
[1725218610154,0.4006,2496.4,2496.0,0.40065]
[1725218610350,0.40061,2496.3,2495.9,8.68100218]
[1725218610855,0.4006,2496.4,2496.0,0.40066]
[1725218611756,1.00758,2496.5,2496.1,0.40063]
[1725218612461,0.40059,2496.4,2496.0,0.40065]
[1725218612661,1.00759,2496.5,2496.0,0.40065]
[1725218612865,0.40063,2496.2,2495.9,8.28033218]
[1725218613247,0.40062,2496.3,2495.9,8.68100218]
[1725218613453,0.40062,2496.3,2495.9,8.28033218]
[1725218613959,0.40063,2496.2,2495.9,8.28033218]
[1725218616558,0.40062,2496.3,2495.9,8.28033218]
[1725218618149,0.40062,2496.2,2495.9,8.28033218]
[1725218618458,0.40064,2496.1,2495.9,8.28033218]
[1725218619464,0.40066,2496.0,2495.9,8.28033218]
[1725218620166,0.40065,2496.1,2495.9,8.28033218]
[1725218620758,0.40067,2495.9,2495.8,1.17930853]
[1725218621160,8.61656,2495.9,2495.8,0.00600853]
[1725218621355,17.75783037,2495.9,2495.1,5.4207]
[1725218621576,0.40078,2495.2,2495.1,1.2307]
[1725218622059,0.40078,2495.3,2495.1,1.2307]
[1725218623259,0.40076,2495.4,2495.1,1.2307]
[1725218623765,3.2078,2495.6,2495.1,1.2307]
[1725218623766,3.2078,2495.6,2495.1,5.2387]
[1725218623953,3.2078,2495.6,2495.2,9.18503971]
[1725218624154,3.2078,2495.6,2495.2,9.58581971]
[1725218624155,3.60853,2495.6,2495.2,9.58581971]
[1725218625158,0.40068,2495.9,2495.2,9.18503971]
[1725218625662,8.0599,2496.0,2495.2,9.18503971]
[1725218625966,4.25867386,2495.8,2495.2,9.58580971]
[1725218626169,0.40071,2495.7,2495.2,9.58580971]
[1725218626352,0.4007,2495.8,2495.2,9.18503971]
[1725218626555,8.0599,2496.0,2495.2,9.18503971]
[1725218626756,0.40069,2495.8,2495.4,0.40074]
[1725218627158,0.40069,2495.8,2495.5,8.25212956]
[1725218627356,0.40069,2495.8,2495.6,0.6078]
[1725218627771,0.4007,2495.7,2495.6,0.6078]
[1725218628066,0.4007,2495.7,2495.5,8.25212956]
[1725218628865,2.77,2495.8,2495.5,8.25212956]
[1725218629062,0.40071,2495.7,2495.5,8.25212956]
[1725218629465,0.40072,2495.7,2495.5,8.25212956]
[1725218631666,2.77,2495.8,2495.5,8.65285956]
[1725218631865,2.77,2495.8,2495.6,0.5873]
[1725218632167,3.17069,2495.8,2495.6,0.5873]
[1725218633160,0.4007,2495.7,2495.6,0.5873]
[1725218633562,2.77,2495.8,2495.4,0.6078]
[1725218633760,0.40073,2495.6,2495.4,0.6078]
[1725218634261,0.40074,2495.5,2495.4,0.6078]
[1725218635161,2.77,2495.8,2495.4,0.6078]
[1725218635162,0.40073,2495.6,2495.4,0.6078]
[1725218641971,11.04951105,2495.5,2495.0,0.00600853]
[1725218642181,3.1708,2495.1,2495.0,0.00600853]
[1725218642479,4.17281,2495.1,2495.0,0.00600853]
[1725218642777,4.17281,2495.1,2494.4,4.19]
[1725218642778,0.4009,2494.5,2494.4,4.19]
[1725218642971,0.40089,2494.6,2494.2,1.7119]
[1725218643289,2.77,2494.7,2494.2,1.7119]
[1725218643290,0.4009,2494.5,2494.3,8.47451957]
[1725218643465,3.2078,2494.8,2494.3,8.47451957]
[1725218643671,3.60866,2494.8,2494.3,8.87543957]
[1725218643874,0.40087,2494.7,2494.3,8.47451957]
[1725218645384,3.61466853,2494.8,2494.3,8.47451957]
[1725218645575,3.61465853,2494.8,2494.3,8.47451957]
[1725218645778,3.21380853,2494.8,2494.3,8.87542957]
[1725218646180,3.61465853,2494.8,2494.3,8.87542957]
[1725218647183,0.40087,2494.7,2494.3,8.47451957]
[1725218647379,0.4009,2494.6,2494.3,8.47451957]
[1725218647579,0.4009,2494.5,2494.3,8.47451957]
[1725218647986,0.40089,2494.6,2494.3,8.47451957]
[1725218648489,3.61466853,2494.8,2494.3,8.47451957]
[1725218648695,0.40087,2494.7,2494.3,8.47451957]
[1725218648995,3.21380853,2494.8,2494.3,8.47451957]
[1725218648996,0.4009,2494.5,2494.3,8.47451957]
[1725218649189,0.4009,2494.5,2494.2,0.6209]
[1725218649586,0.40092,2494.4,2494.2,0.6209]
[1725218649785,0.40092,2494.4,2494.1,0.5745]
[1725218649991,0.40092,2494.4,2494.1,1.1954]
[1725218651098,0.6104,2494.5,2494.1,1.1954]
[1725218651298,0.40095,2494.2,2494.1,1.1954]
[1725218651499,0.40094,2494.3,2494.1,1.1954]
[1725218651790,0.6104,2494.5,2494.1,1.1954]
[1725218652592,0.6104,2494.5,2494.2,0.40094]
[1725218652795,0.5933,2494.7,2494.2,8.75699655]
[1725218652796,0.40087,2494.7,2494.2,8.75699655]
[1725218653101,0.40087,2494.7,2494.2,8.35605655]
[1725218653102,0.40088,2494.7,2494.2,8.35605655]
[1725218653296,0.40088,2494.7,2494.2,8.75699655]
[1725218653494,3.17089,2494.6,2494.2,8.35605655]
[1725218653993,2.77,2494.6,2494.2,8.35605655]
[1725218654200,5.98380853,2494.8,2494.2,8.35605655]
[1725218654395,5.98380853,2494.8,2494.4,0.40091]
[1725218654794,5.98380853,2494.8,2494.5,0.40089]
[1725218654996,5.98380853,2494.8,2494.6,0.602]
[1725218655593,0.40086,2494.7,2494.6,0.602]
[1725218655787,2.77600853,2494.8,2494.6,0.602]
[1725218656690,2.77600853,2494.8,2494.7,0.6222]
[1725218656892,0.00600853,2494.8,2494.7,5.03186]
[1725218657099,2.77,2495.3,2494.7,22.36540169]
[1725218657295,2.77,2495.3,2495.1,0.4008]
[1725218657600,2.77,2495.3,2495.2,1.2433]
[1725218658490,6.778,2495.3,2495.0,0.00600853]
[1725218658693,2.77,2495.1,2495.0,0.00600853]
[1725218658887,4.36845258,2495.1,2495.0,0.00600853]
[1725218659197,18.74939933,2495.1,2495.0,0.00600853]
[1725218660097,18.74939933,2495.1,2494.3,5.0357]
[1725218660098,0.40091,2494.4,2494.3,3.2078]
[1725218660291,2.77,2494.7,2494.5,0.4009]
[1725218660497,2.77,2494.7,2494.4,0.40091]
[1725218660693,2.77,2494.7,2494.3,0.40092]
[1725218660694,3.17087,2494.7,2494.3,0.40092]
[1725218661496,3.17087,2494.7,2494.4,0.40091]
[1725218661696,3.17087,2494.7,2494.5,0.596]
[1725218662405,2.77,2494.7,2494.5,0.596]
[1725218662596,3.17087,2494.7,2494.5,0.596]
[1725218662793,2.77,2494.9,2494.5,0.596]
[1725218662996,0.40082,2495.0,2494.7,0.40086]
[1725218663197,0.40082,2495.0,2494.6,1.61287]
[1725218663693,0.40083,2494.9,2494.6,1.61287]
[1725218663898,0.40083,2494.9,2494.6,1.212]
[1725218664296,9.9866,2494.8,2493.8,3.2078]
[1725218664497,0.40094,2494.3,2494.0,0.40097]
[1725218664696,0.40094,2494.3,2493.9,9.99214645]
[1725218665706,0.40092,2494.4,2494.0,0.40097]
[1725218666110,0.40093,2494.3,2494.0,0.40097]
[1725218666303,0.40093,2494.3,2493.9,9.99214645]
[1725218667305,0.40096,2494.1,2493.9,9.59115645]
[1725218667509,0.40097,2494.1,2493.9,1.1861]
[1725218668106,0.62010853,2494.2,2493.9,1.1861]
[1725218668107,0.40098,2494.0,2493.9,1.1861]
[1725218668705,0.40098,2494.0,2493.8,3.2078]
[1725218668706,0.40099,2493.9,2493.8,3.2078]
[1725218669207,0.40099,2493.9,2493.5,0.6162]
[1725218669208,0.40103,2493.7,2493.5,0.6162]
[1725218669704,0.40103,2493.7,2493.6,8.24992061]
[1725218670295,0.40102,2493.8,2493.6,8.24992061]
[1725218670499,2.77,2494.1,2493.6,8.24992061]
[1725218671210,0.401,2493.9,2493.6,8.24992061]
[1725218671603,0.40099,2494.0,2493.6,8.65096061]
[1725218671804,0.40099,2493.9,2493.6,8.24992061]
[1725218672314,0.40099,2494.0,2493.6,8.65096061]